fUST/lending_fUST_20250224
["ID","MTS","AMOUNT","RATE_DAILY","PERIOD"]
[354202602,1740345046440,-500.0,0.00013863,2]
[354202603,1740345046449,-500.0,0.00013863,2]
[354202604,1740345046458,-500.0,0.00013863,2]
[354202605,1740345046467,-500.0,0.00013863,2]
[354202606,1740345046476,-500.0,0.00013863,2]
[354202607,1740345046485,-349.07011806,0.00013863,2]
[354202608,1740345046494,-500.0,0.00013863,2]
[354202609,1740345046503,-500.0,0.00013863,2]
[354202610,1740345046513,-500.0,0.00013863,2]
[354202611,1740345046522,-500.0,0.00013863,2]
[354202612,1740345046531,-500.0,0.00013863,2]
[354202613,1740345046541,-8594.17,0.00013863,2]
[354202614,1740345046550,-500.0,0.00013863,2]
[354202615,1740345046559,-500.0,0.00013863,2]
[354202616,1740345046568,-501.82934234,0.00013863,2]
[354202617,1740345046577,-500.0,0.00013863,2]
[354202618,1740345046586,-500.0,0.00013863,2]
[354202619,1740345046596,-938.11,0.00013863,2]
[354202620,1740345046605,-500.0,0.00013863,2]
[354202621,1740345046615,-500.0,0.00013863,2]
[354202622,1740345046624,-500.0,0.00013863,2]
[354202623,1740345046633,-500.0,0.00013863,2]
[354202624,1740345046643,-500.0,0.00013863,2]
[354202625,1740345046653,-500.0,0.00013863,2]
[354202626,1740345046662,-503.76587529,0.00013863,2]
[354202627,1740345046671,-502.13701773,0.00013863,2]
[354202628,1740345046681,-500.0,0.00013863,2]
[354202629,1740345046690,-500.0,0.00013863,2]
[354202630,1740345046699,-502.59570178,0.00013863,2]
[354202631,1740345046708,-460.16596127,0.00013863,2]
[354202632,1740345046718,-2150.33,0.00013863,2]
[354202633,1740345046730,-500.0,0.00013863,2]
[354202634,1740345046740,-500.0,0.00013863,2]
[354202635,1740345046749,-500.0,0.00013863,2]
[354202636,1740345046758,-500.0,0.00013863,2]
[354202637,1740345046767,-500.0,0.00013863,2]
[354202638,1740345046776,-500.0,0.00013863,2]
[354202639,1740345046785,-500.0,0.00013863,2]
[354202640,1740345046795,-1241.58,0.00013863,2]
[354202641,1740345046804,-885.07,0.00013863,2]
[354202642,1740345046813,-500.0,0.00013863,2]
[354202643,1740345046823,-500.0,0.00013863,2]
[354202644,1740345046833,-500.0,0.00013863,2]
[354202645,1740345046842,-500.0,0.00013863,2]
[354202646,1740345046851,-500.0,0.00013863,2]
[354202647,1740345046860,-500.0,0.00013863,2]
[354202648,1740345046869,-500.0,0.00013863,2]
[354202649,1740345046879,-740.49,0.00013863,2]
[354202650,1740345046888,-500.0,0.00013863,2]
[354202651,1740345046898,-500.0,0.00013863,2]
[354202652,1740345046907,-2024.46,0.00013863,2]
[354202654,1740345046916,-505.69275992,0.00013863,2]
[354202656,1740345046979,-550.14756504,0.00013863,2]
[354202658,1740345046990,-500.0,0.00013863,2]
[354202660,1740345046999,-500.0,0.00013863,2]
[354202662,1740345047010,-500.0,0.00013863,2]
[354202663,1740345047020,-502.90334253,0.00013863,2]
[354202665,1740345047030,-502.31630267,0.00013863,2]
[354202667,1740345047040,-500.0,0.00013863,2]
[354202669,1740345047050,-500.0,0.00013863,2]
[354202671,1740345047060,-500.0,0.00013863,2]
[354202673,1740345047069,-500.0,0.00013863,2]
[354202674,1740345047078,-500.0,0.00013863,2]
[354202676,1740345047090,-500.0,0.00013863,2]
[354202678,1740345047100,-1170.34,0.00013863,2]
[354202680,1740345047109,-4511.8,0.00013863,2]
[354202682,1740345047118,-549.67398327,0.00013863,2]
[354202684,1740345047127,-500.0,0.00013863,2]
[354202686,1740345047136,-718.68,0.00013863,2]
[354202688,1740345047146,-500.0,0.00013863,2]
[354202690,1740345047155,-500.0,0.00013863,2]
[354202692,1740345047164,-500.0,0.00013863,2]
[354202694,1740345047174,-500.0,0.00013863,2]
[354202696,1740345047183,-500.0,0.00013863,2]
[354202698,1740345047192,-1717.04,0.00013863,2]
[354202700,1740345047201,-508.74771213,0.00013863,2]
[354202702,1740345047210,-500.0,0.00013863,2]
[354202704,1740345047219,-500.0,0.00013863,2]
[354202706,1740345047228,-500.0,0.00013863,2]
[354202708,1740345047237,-3021.7,0.00013863,2]
[354202710,1740345047246,-500.0,0.00013863,2]
[354202712,1740345047255,-500.0,0.00013863,2]
[354202714,1740345047264,-500.0,0.00013863,2]
[354202716,1740345047274,-1471.42,0.00013863,2]
[354202718,1740345047283,-500.0,0.00013863,2]
[354202720,1740345047293,-2193.42,0.00013863,2]
[354202722,1740345047303,-500.0,0.00013863,2]
[354202724,1740345047312,-6667.52,0.00013863,2]
[354202726,1740345047321,-502.62332079,0.00013863,2]
[354202728,1740345047331,-500.0,0.00013863,2]
[354202730,1740345047340,-500.0,0.00013863,2]
[354202732,1740345047349,-500.0,0.00013863,2]
[354202734,1740345047358,-500.0,0.00013863,2]
[354202736,1740345047368,-500.0,0.00013863,2]
[354202738,1740345047377,-500.0,0.00013863,2]
[354202740,1740345047386,-500.0,0.00013863,2]
[354202742,1740345047395,-1884.19,0.00013863,2]
[354202744,1740345047405,-500.0,0.00013863,2]
[354202746,1740345047414,-500.0,0.00013863,2]
[354202747,1740345047423,-500.0,0.00013863,2]
[354202748,1740345047432,-500.0,0.00013863,2]
[354202749,1740345047442,-500.0,0.00013863,2]
[354202750,1740345047451,-297.70468357,0.00013863,2]
[354202751,1740345047461,-1029.29,0.00013863,2]
[354202752,1740345047471,-500.0,0.00013863,2]
[354202753,1740345047481,-500.0,0.00013863,2]
[354202754,1740345047491,-500.0,0.00013863,2]
[354202755,1740345047500,-500.0,0.00013863,2]
[354202756,1740345047510,-500.0,0.00013863,2]
[354202757,1740345047519,-500.0,0.00013863,2]
[354202758,1740345047529,-573.17,0.00013863,2]
[354202759,1740345047538,-1483.76,0.00013863,2]
[354202760,1740345047547,-500.0,0.00013863,2]
[354202761,1740345047556,-500.0,0.00013863,2]
[354202762,1740345047566,-500.0,0.00013863,2]
[354202763,1740345047575,-500.0,0.00013863,2]
[354202764,1740345047584,-500.0,0.00013863,2]
[354202765,1740345047593,-500.0,0.00013863,2]
[354202766,1740345047603,-500.0,0.00013863,2]
[354202767,1740345047612,-519.82,0.00013863,2]
[354202768,1740345047621,-500.0,0.00013863,2]
[354202769,1740345047631,-500.0,0.00013863,2]
[354202770,1740345047641,-763.94491049,0.00013877,2]
[354202771,1740345047650,-151.0,0.000139,2]
[354202772,1740345047660,-151.0,0.000139,2]
[354202773,1740345047669,-151.0,0.000139,2]
[354202774,1740345047679,-151.0,0.000139,2]
[354202775,1740345047689,-151.0,0.000139,2]
[354202776,1740345047698,-151.0,0.000139,2]
[354202777,1740345047708,-401.763,0.000139,2]
[354202778,1740345047717,-170.91,0.000139,2]
[354202779,1740345047726,-151.0,0.000139,2]
[354202780,1740345047736,-151.0,0.000139,2]
[354202781,1740345047745,-151.0,0.000139,2]
[354202782,1740345047755,-151.0,0.000139,2]
[354202783,1740345047764,-151.0,0.000139,2]
[354202784,1740345047773,-151.0,0.000139,2]
[354202785,1740345047783,-605.6877649,0.000139,2]
[354202786,1740345047791,-605.6877649,0.000139,2]
[354202787,1740345047801,-605.6877649,0.000139,2]
[354202788,1740345047810,-605.6877649,0.000139,2]
[354202789,1740345047819,-605.6877649,0.000139,2]
[354202790,1740345047828,-605.6877649,0.000139,2]
[354202791,1740345047838,-605.6877649,0.000139,2]
[354202792,1740345047898,-605.6877649,0.000139,2]
[354202793,1740345047907,-605.6877649,0.000139,2]
[354202794,1740345047917,-605.6877649,0.000139,2]
[354202795,1740345047926,-605.6877649,0.000139,2]
[354202796,1740345047935,-605.6877649,0.000139,2]
[354202797,1740345047945,-605.6877649,0.000139,2]
[354202798,1740345047954,-605.6877649,0.000139,2]
[354202799,1740345047965,-605.6877649,0.000139,2]
[354202800,1740345047976,-605.6877649,0.000139,2]
[354202801,1740345047985,-605.6877649,0.000139,2]
[354202802,1740345047994,-605.6877649,0.000139,2]
[354202803,1740345048003,-605.6877649,0.000139,2]
[354202804,1740345048012,-605.68,0.000139,2]
[354202805,1740345048021,-266.8802588,0.000139,2]
[354202806,1740345048030,-266.8802588,0.000139,2]
[354202807,1740345048040,-266.8802588,0.000139,2]
[354202808,1740345048049,-266.8802588,0.000139,2]
[354202809,1740345048059,-266.8802588,0.000139,2]
[354202810,1740345048069,-266.8802588,0.000139,2]
[354202811,1740345048080,-266.8802588,0.000139,2]
[354202812,1740345048089,-266.8802588,0.000139,2]
[354202813,1740345048099,-266.8802588,0.000139,2]
[354202814,1740345048109,-266.8802588,0.000139,2]
[354202815,1740345048119,-266.8802588,0.000139,2]
[354202816,1740345048128,-266.8802588,0.000139,2]
[354202817,1740345048137,-266.8802588,0.000139,2]
[354202818,1740345048147,-266.8802588,0.000139,2]
[354202819,1740345048155,-266.8802588,0.000139,2]
[354202820,1740345048164,-266.8802588,0.000139,2]
[354202821,1740345048173,-266.8802588,0.000139,2]
[354202822,1740345048182,-266.8802588,0.000139,2]
[354202823,1740345048191,-266.8802588,0.000139,2]
[354202824,1740345048200,-266.88,0.000139,2]
[354202825,1740345048210,-156.8878157,0.000139,2]
[354202826,1740345048219,-156.8878157,0.000139,2]
[354202827,1740345048229,-156.8878157,0.000139,2]
[354202828,1740345048238,-156.8878157,0.000139,2]
[354202829,1740345048247,-156.8878157,0.000139,2]
[354202830,1740345048256,-156.8878157,0.000139,2]
[354202831,1740345048265,-156.8878157,0.000139,2]
[354202832,1740345048275,-156.8878157,0.000139,2]
[354202833,1740345048284,-156.8878157,0.000139,2]
[354202834,1740345048293,-156.8878157,0.000139,2]
[354202835,1740345048314,-156.8878157,0.000139,2]
[354202836,1740345048332,-156.8878157,0.000139,2]
[354202837,1740345048350,-156.8878157,0.000139,2]
[354202838,1740345048370,-156.8878157,0.000139,2]
[354202839,1740345048388,-156.8878157,0.000139,2]
[354202840,1740345048406,-156.8878157,0.000139,2]
[354202841,1740345048420,-156.8878157,0.000139,2]
[354202842,1740345048436,-156.8878157,0.000139,2]
[354202843,1740345048454,-156.88,0.000139,2]
[354202844,1740345048476,-3292.02466443,0.000139,2]
[354202845,1740345048490,-500.0,0.00013916,2]
[354202846,1740345048508,-500.0,0.00013945,2]
[354202847,1740345048524,-500.0,0.00013945,2]
[354202848,1740345048541,-558.37,0.00013945,2]
[354202849,1740345048554,-502.79605824,0.00013945,2]
[354202850,1740345048570,-505.89212369,0.00013945,2]
[354202851,1740345048585,-500.0,0.00013945,2]
[354202852,1740345048601,-500.0,0.00013945,2]
[354202853,1740345048615,-500.0,0.00013945,2]
[354202854,1740345048629,-500.0,0.00013945,2]
[354202855,1740345048644,-500.0,0.00013945,2]
[354202856,1740345048658,-500.0,0.00013945,2]
[354202857,1740345048673,-500.0,0.00013945,2]
[354202858,1740345048688,-502.89403746,0.00013945,2]
[354202859,1740345048702,-231.01505626,0.00013945,2]
[354202860,1740345048717,-500.0,0.00013945,2]
[354202861,1740345048731,-500.0,0.00013945,2]
[354202862,1740345048746,-500.0,0.00013945,2]
[354202863,1740345048760,-682.88,0.00013945,2]
[354202864,1740345048769,-500.0,0.00013945,2]
[354202865,1740345048779,-500.0,0.00013945,2]
[354202866,1740345048788,-500.0,0.00013945,2]
[354202867,1740345048797,-687.41,0.00013945,2]
[354202868,1740345048807,-500.0,0.00013945,2]
[354202869,1740345048816,-500.0,0.00013945,2]
[354202870,1740345048826,-500.0,0.00013945,2]
[354202871,1740345048835,-926.91,0.00013945,2]
[354202872,1740345048845,-500.0,0.00013945,2]
[354202873,1740345048854,-500.0,0.00013945,2]
[354202874,1740345048864,-500.0,0.00013945,2]
[354202875,1740345048873,-500.0,0.00013945,2]
[354202876,1740345048882,-500.0,0.00013945,2]
[354202877,1740345049030,-500.0,0.00013945,2]
[354202878,1740345049046,-500.0,0.00013945,2]
[354202879,1740345049056,-526.43,0.00013945,2]
[354202880,1740345049065,-500.0,0.00013945,2]
[354202881,1740345049075,-500.0,0.00013945,2]
[354202882,1740345049084,-827.84,0.00013945,2]
[354202883,1740345049094,-500.0,0.00013945,2]
[354202884,1740345049103,-500.0,0.00013945,2]
[354202885,1740345049113,-555.11,0.00013945,2]
[354202886,1740345049123,-654.84,0.00013945,2]
[354202887,1740345049132,-153.51,0.00013945,2]
[354202888,1740345049141,-500.0,0.00013945,2]
[354202889,1740345049150,-500.0,0.00013945,2]
[354202890,1740345049159,-500.0,0.00013945,2]
[354202891,1740345049167,-500.0,0.00013945,2]
[354202892,1740345049177,-500.0,0.00013945,2]
[354202893,1740345049186,-500.0,0.00013945,2]
[354202894,1740345049195,-500.0,0.00013945,2]
[354202895,1740345049204,-500.0,0.00013945,2]
[354202896,1740345049214,-500.0,0.00013945,2]
[354202897,1740345049223,-500.0,0.00013945,2]
[354202898,1740345049232,-952.23,0.00013945,2]
[354202899,1740345049242,-634.10235717,0.00013945,2]
[354202900,1740345049251,-500.0,0.00013945,2]
[354202901,1740345049260,-2603.88,0.00013945,2]
[354202902,1740345049269,-500.0,0.00013945,2]
[354202903,1740345049279,-500.0,0.00013945,2]
[354202904,1740345049288,-500.0,0.00013945,2]
[354202905,1740345049297,-298.83533523,0.00013945,2]
[354202906,1740345049306,-500.0,0.00013945,2]
[354202907,1740345049315,-500.0,0.00013945,2]
[354202908,1740345049324,-500.0,0.00013945,2]
[354202909,1740345049334,-500.0,0.00013945,2]
[354202910,1740345049343,-500.0,0.00013945,2]
[354202911,1740345049352,-500.0,0.00013945,2]
[354202912,1740345049362,-500.0,0.00013945,2]
[354202913,1740345049371,-503.83313014,0.00013945,2]
[354202914,1740345049381,-8594.17,0.00013945,2]
[354202915,1740345049390,-500.0,0.00013945,2]
[354202916,1740345049400,-333.70263737,0.00013945,2]
[354202917,1740345049497,-166.29736263,0.00013945,2]
[354202918,1740345049506,-501.818581,0.00013945,2]
[354202919,1740345049516,-938.11,0.00013945,2]
[354202920,1740345049526,-500.0,0.00013945,2]
[354202921,1740345049536,-500.0,0.00013945,2]
[354202922,1740345049545,-500.0,0.00013945,2]
[354202923,1740345049555,-585.82,0.00013945,2]
[354202924,1740345049564,-500.0,0.00013945,2]
[354202925,1740345049573,-500.0,0.00013945,2]
[354202926,1740345049583,-500.0,0.00013945,2]
[354202927,1740345049592,-151.70072566,0.00013945,2]
[354202928,1740345049602,-2150.33,0.00013945,2]
[354202929,1740345049611,-500.0,0.00013945,2]
[354202930,1740345049621,-500.0,0.00013945,2]
[354202931,1740345049630,-500.0,0.00013945,2]
[354202932,1740345049639,-314.66862654,0.00013945,2]
[354202933,1740345049649,-500.0,0.00013945,2]
[354202934,1740345049658,-500.0,0.00013945,2]
[354202935,1740345049667,-1241.58,0.00013945,2]
[354202936,1740345049676,-885.07,0.00013945,2]
[354202937,1740345049685,-500.0,0.00013945,2]
[354202938,1740345049695,-500.0,0.00013945,2]
[354202939,1740345049704,-500.0,0.00013945,2]
[354202940,1740345049713,-500.0,0.00013945,2]
[354202941,1740345049722,-500.0,0.00013945,2]
[354202942,1740345049731,-500.0,0.00013945,2]
[354202943,1740345049740,-500.0,0.00013945,2]
[354202944,1740345049749,-740.49,0.00013945,2]
[354202945,1740345049758,-500.0,0.00013945,2]
[354202946,1740345049767,-613.07,0.00013945,2]
[354202947,1740345049776,-2024.46,0.00013945,2]
[354202948,1740345049785,-500.0,0.00013945,2]
[354202949,1740345049794,-500.0,0.00013945,2]
[354202950,1740345049803,-500.0,0.00013945,2]
[354202951,1740345049813,-500.0,0.00013945,2]
[354202952,1740345049822,-1170.34,0.00013945,2]
[354202953,1740345049830,-4511.8,0.00013945,2]
[354202954,1740345049839,-718.68,0.00013945,2]
[354202955,1740345049848,-500.0,0.00013945,2]
[354202956,1740345049857,-500.0,0.00013945,2]
[354202957,1740345049866,-500.0,0.00013945,2]
[354202958,1740345049875,-500.0,0.00013945,2]
[354202959,1740345049884,-1717.04,0.00013945,2]
[354202960,1740345049893,-500.0,0.00013945,2]
[354202961,1740345049903,-528.55,0.00013945,2]
[354202962,1740345049912,-3021.7,0.00013945,2]
[354202963,1740345049923,-500.0,0.00013945,2]
[354202964,1740345049933,-500.0,0.00013945,2]
[354202965,1740345049943,-262.04931359,0.00013945,2]
[354202966,1740345049953,-1471.42,0.00013945,2]
[354202967,1740345049962,-500.0,0.00013945,2]
[354202968,1740345049976,-2193.42,0.00013945,2]
[354202969,1740345049986,-500.0,0.00013945,2]
[354202970,1740345049995,-6667.52,0.00013945,2]
[354202971,1740345050004,-500.0,0.00013945,2]
[354202972,1740345050014,-500.0,0.00013945,2]
[354202973,1740345050023,-500.0,0.00013945,2]
[354202974,1740345050033,-500.0,0.00013945,2]
[354202975,1740345050043,-500.0,0.00013945,2]
[354202976,1740345050054,-1884.19,0.00013945,2]
[354202977,1740345050064,-500.0,0.00013945,2]
[354202978,1740345050074,-500.0,0.00013945,2]
[354202979,1740345050083,-500.0,0.00013945,2]
[354202980,1740345050093,-500.0,0.00013945,2]
[354202981,1740345050102,-500.0,0.00013945,2]
[354202982,1740345050111,-1029.29,0.00013945,2]
[354202983,1740345050121,-500.0,0.00013945,2]
[354202984,1740345050130,-500.0,0.00013945,2]
[354202985,1740345050139,-500.0,0.00013945,2]
[354202986,1740345050148,-500.0,0.00013945,2]
[354202987,1740345050157,-500.0,0.00013945,2]
[354202988,1740345050166,-500.0,0.00013945,2]
[354202989,1740345050175,-573.17,0.00013945,2]
[354202990,1740345050184,-1483.76,0.00013945,2]
[354202991,1740345050193,-500.0,0.00013945,2]
[354202992,1740345050203,-500.0,0.00013945,2]
[354202993,1740345050212,-500.0,0.00013945,2]
[354202994,1740345050221,-519.82,0.00013945,2]
[354202995,1740345050230,-505.08714687,0.00013945,2]
[354202996,1740345050240,-500.0,0.00013945,2]
[354202997,1740345050250,-538.0,0.0001395,2]
[354202998,1740345050259,-1969.0,0.0001395,2]
[354202999,1740345050268,-2288.0,0.0001395,2]
[354203000,1740345050277,-501.31698539,0.00013973,2]
[354203001,1740345050286,-387.20735709,0.00013973,2]
[354203002,1740345050295,-500.0,0.00013973,2]
[354203003,1740345050304,-763.94491049,0.00013977,2]
[354203004,1740345050313,-671.71831789,0.00013987,2]
[354203005,1740345050322,-54893.80709764,0.00014,5]
[354203006,1740345050335,-58494.74835362,0.00014,5]
[354203007,1740345050344,-10934.81801912,0.00014,5]
[354203008,1740345050354,-381882.26233904,0.00014,5]
[354203009,1740345050363,-4407.3,0.00014,5]
[354203010,1740345050373,-6349.27337171,0.00014,15]
[354203011,1740345050620,-500.0,0.00013698,2]
[354203012,1740345050629,-500.0,0.00013698,2]
[354203013,1740345050639,-500.0,0.00013698,2]
[354203014,1740345050648,-500.0,0.0001378,2]
[354203015,1740345050657,-500.0,0.0001378,2]
[354203016,1740345050666,-500.0,0.0001378,2]
[354203017,1740345050675,-275.49371487,0.0001378,2]
[354203018,1740345050684,-500.0,0.00013863,2]
[354203019,1740345050693,-500.0,0.00013863,2]
[354203020,1740345050702,-500.0,0.00013863,2]
[354203021,1740345050711,-500.0,0.00013945,2]
[354203022,1740345050720,-500.0,0.00013945,2]
[354203023,1740345050729,-96604.82091013,0.00014,15]
[354203024,1740345050741,-2223.84754195,0.00014,15]
[354203025,1740345050762,-500.0,0.00013698,2]
[354203026,1740345050771,-908828.21817621,0.00014,15]
[354203027,1740345050782,-300.0,0.00014,2]
[354203028,1740345050791,-1666297.36388765,0.00014,2]
[354203029,1740345050910,-501.18957131,0.00013698,2]
[354203030,1740345050919,-2354.81042869,0.00014,2]
[354203031,1740345050930,-1742.0,0.00014,2]
[354203032,1740345051262,-500.0,0.00013698,2]
[354203033,1740345051273,-500.0,0.00013698,2]
[354203034,1740345051283,-500.0,0.00013698,2]
[354203035,1740345051294,-500.0,0.00013698,2]
[354203036,1740345051304,-500.0,0.0001378,2]
[354203037,1740345051315,-500.0,0.0001378,2]
[354203038,1740345051325,-500.0,0.0001378,2]
[354203039,1740345051334,-53575.3288392,0.00014,2]
[354203040,1740345051348,-34313.73995257,0.00014,2]
[354203041,1740345051360,-67357.51690665,0.00014,2]
[354203055,1740345537189,160.203889,9.041e-05,2]
[354203112,1740346232874,-600.0,0.00012664,2]
[354203114,1740346232883,-224.91380463,0.00013186,2]
[354203116,1740346232893,-500.0,0.00013473,2]
[354203118,1740346232901,-194.89555962,0.00013498,2]
[354203120,1740346232911,-300.0,0.00013498,2]
[354203122,1740346232921,-500.0,0.00013499,2]
[354203124,1740346232930,-500.0,0.00013499,2]
[354203126,1740346232939,-500.0,0.00013499,2]
[354203128,1740346232949,-500.0,0.00013499,2]
[354203129,1740346232958,-500.0,0.00013499,2]
[354203130,1740346232968,-500.0,0.00013499,2]
[354203131,1740346232977,-500.0,0.00013499,2]
[354203132,1740346232987,-500.0,0.00013499,2]
[354203133,1740346232996,-609.55032012,0.00013499,2]
[354203134,1740346233005,-500.0,0.00013499,2]
[354203135,1740346233015,-500.0,0.00013499,2]
[354203136,1740346233025,-500.0,0.00013499,2]
[354203137,1740346233034,-500.0,0.00013499,2]
[354203138,1740346233044,-500.0,0.00013499,2]
[354203139,1740346233054,-500.0,0.00013499,2]
[354203140,1740346233064,-500.0,0.00013499,2]
[354203141,1740346233073,-500.0,0.00013499,2]
[354203142,1740346233087,-368.22681533,0.00013499,2]
[354203143,1740346233096,-500.0,0.00013499,2]
[354203144,1740346233115,-176864.47677425,0.000135,2]
[354203145,1740346233136,-50958.15260776,0.000135,2]
[354203146,1740346233148,-564.51838994,0.000135,2]
[354203147,1740346233160,-439.565,0.000135,2]
[354203153,1740346238670,-87886.03461798,0.000135,2]
[354203154,1740346238680,-178.65410703,0.00013598,2]
[354203155,1740346238689,-553.45754452,0.00013698,2]
[354203156,1740346238697,-500.0,0.00013698,2]
[354203157,1740346238706,-500.0,0.00013698,2]
[354203158,1740346238715,-500.0,0.00013698,2]
[354203159,1740346238724,-500.0,0.00013698,2]
[354203160,1740346238734,-500.0,0.00013698,2]
[354203161,1740346238743,-500.0,0.00013698,2]
[354203162,1740346238755,-500.0,0.00013698,2]
[354203163,1740346238764,-440.6236523,0.00013698,2]
[354203164,1740346238773,-501.2788182,0.00013698,2]
[354203165,1740346238783,-500.0,0.00013698,2]
[354203166,1740346238792,-500.0,0.00013698,2]
[354203167,1740346238802,-500.0,0.00013698,2]
[354203168,1740346238811,-500.0,0.00013698,2]
[354203169,1740346238821,-500.0,0.00013698,2]
[354203170,1740346238831,-500.0,0.00013698,2]
[354203171,1740346238841,-500.0,0.00013698,2]
[354203172,1740346238850,-500.0,0.00013698,2]
[354203173,1740346238860,-501.64097503,0.00013698,2]
[354203174,1740346238869,-500.0,0.00013698,2]
[354203175,1740346238879,-500.0,0.00013698,2]
[354203176,1740346238888,-500.0,0.00013698,2]
[354203177,1740346238897,-500.0,0.00013698,2]
[354203178,1740346238907,-500.0,0.00013698,2]
[354203179,1740346238919,-500.0,0.00013698,2]
[354203180,1740346238928,-500.0,0.00013698,2]
[354203181,1740346238937,-199.138979,0.00013698,2]
[354203182,1740346238946,-500.0,0.00013698,2]
[354203183,1740346238955,-500.0,0.00013698,2]
[354203184,1740346238965,-500.0,0.00013698,2]
[354203185,1740346238974,-500.0,0.00013698,2]
[354203186,1740346238983,-500.0,0.00013698,2]
[354203187,1740346238992,-634.75815014,0.00013698,2]
[354203188,1740346239002,-527.0261349,0.00013698,2]
[354203189,1740346239011,-511.02669937,0.00013698,2]
[354203190,1740346239019,-500.0,0.00013698,2]
[354203191,1740346239029,-500.0,0.00013698,2]
[354203192,1740346239039,-500.0,0.00013698,2]
[354203193,1740346239048,-500.0,0.00013698,2]
[354203194,1740346239057,-592.13419471,0.00013698,2]
[354203195,1740346239068,-500.0,0.00013698,2]
[354203196,1740346239080,-500.0,0.00013698,2]
[354203197,1740346239089,-500.0,0.00013698,2]
[354203198,1740346239099,-500.0,0.00013698,2]
[354203199,1740346239109,-500.0,0.00013698,2]
[354203200,1740346239119,-500.0,0.00013698,2]
[354203201,1740346239128,-500.0,0.00013698,2]
[354203202,1740346239137,-500.55644541,0.00013698,2]
[354203203,1740346239147,-500.0,0.00013698,2]
[354203204,1740346239156,-500.0,0.00013698,2]
[354203205,1740346239165,-500.0,0.00013698,2]
[354203206,1740346239174,-500.0,0.00013698,2]
[354203207,1740346239183,-405.14,0.00013698,2]
[354203208,1740346239192,-500.0,0.00013698,2]
[354203209,1740346239201,-500.0,0.00013698,2]
[354203210,1740346239211,-500.0,0.00013698,2]
[354203211,1740346239220,-500.0,0.00013698,2]
[354203212,1740346239339,-694.07,0.00013698,2]
[354203213,1740346239349,-527.08,0.00013698,2]
[354203214,1740346239358,-709.44,0.00013698,2]
[354203215,1740346239368,-500.0,0.00013698,2]
[354203216,1740346239377,-500.0,0.00013698,2]
[354203217,1740346239386,-500.0,0.00013698,2]
[354203218,1740346239395,-818.63,0.00013698,2]
[354203219,1740346239404,-500.0,0.00013698,2]
[354203220,1740346239414,-170.03451522,0.00013698,2]
[354203221,1740346239423,-500.0,0.00013698,2]
[354203222,1740346239433,-500.0,0.00013698,2]
[354203223,1740346239442,-500.0,0.00013698,2]
[354203224,1740346239451,-500.0,0.00013698,2]
[354203225,1740346239461,-500.0,0.00013698,2]
[354203226,1740346239471,-500.0,0.00013698,2]
[354203227,1740346239481,-500.0,0.00013698,2]
[354203228,1740346239490,-500.0,0.00013698,2]
[354203229,1740346239500,-500.0,0.00013698,2]